fUSD/lending_fUSD_20250504
["ID","MTS","AMOUNT","RATE_DAILY","PERIOD"]
[359839587,1746365447330,-450.0,0.0001978,2]
[359839588,1746365447339,-450.0,0.0001978,2]
[359839589,1746365447349,-310.25602455,0.00019781,2]
[359839590,1746365447359,-258.872243,0.00019782,2]
[359839591,1746365447368,-246.518105,0.00019782,2]
[359839592,1746365447377,-151.0,0.00019782,2]
[359839593,1746365447387,-308.100276,0.00019782,2]
[359839594,1746365447396,-308.100276,0.00019782,2]
[359839595,1746365447406,-155.34335,0.00019782,2]
[359839596,1746365447415,-154.836575,0.00019782,2]
[359839597,1746365447425,-233.306102,0.00019782,2]
[359839598,1746365447435,-151.0,0.00019782,2]
[359839599,1746365447445,-233.306102,0.00019782,2]
[359839600,1746365447454,-273.383764,0.00019782,2]
[359839601,1746365447463,-273.383764,0.00019782,2]
[359839602,1746365447472,-151.0,0.00019782,2]
[359839603,1746365447481,-151.0,0.00019782,2]
[359839604,1746365447492,-151.0,0.00019782,2]
[359839605,1746365447502,-151.0,0.00019782,2]
[359839606,1746365447511,-151.0,0.00019782,2]
[359839607,1746365447521,-158.436892,0.00019782,2]
[359839608,1746365447531,-151.0,0.00019782,2]
[359839609,1746365447541,-151.0,0.00019782,2]
[359839610,1746365447552,-151.0,0.00019782,2]
[359839611,1746365447563,-169.622999,0.00019782,2]
[359839612,1746365447573,-151.0,0.00019782,2]
[359839613,1746365447582,-169.622999,0.00019782,2]
[359839614,1746365447592,-151.0,0.00019782,2]
[359839615,1746365447601,-151.0,0.00019782,2]
[359839616,1746365447611,-683.025694,0.00019782,2]
[359839617,1746365447620,-151.0,0.00019782,2]
[359839618,1746365447629,-683.025694,0.00019782,2]
[359839619,1746365447639,-151.0,0.00019782,2]
[359839620,1746365447648,-168.606648,0.00019782,2]
[359839621,1746365447657,-151.0,0.00019782,2]
[359839622,1746365447667,-151.0,0.00019782,2]
[359839623,1746365447676,-136323.1334,0.00019782,2]
[359839624,1746365447686,-3145.66993252,0.00019784,2]
[359839625,1746365447695,-180.80236746,0.00019786,2]
[359839626,1746365447705,-889.1740825,0.00019799,2]
[359839627,1746365447715,-161.46725979,0.00019801,2]
[359839628,1746365447724,-151.0,0.00019802,2]
[359839629,1746365447734,-151.0,0.00019802,2]
[359839630,1746365447743,-152.347355,0.00019802,2]
[359839631,1746365447753,-313.625703,0.00019802,2]
[359839632,1746365447761,-313.625703,0.00019802,2]
[359839633,1746365447771,-151.0,0.00019802,2]
[359839634,1746365447780,-151.0,0.00019802,2]
[359839635,1746365447790,-505.845583,0.00019802,2]
[359839636,1746365447799,-505.845583,0.00019802,2]
[359839637,1746365447809,-500.0,0.00019807,2]
[359839638,1746365447818,-450.0,0.00019808,2]
[359839639,1746365447828,-1433.19,0.00019808,2]
[359839640,1746365447838,-450.0,0.00019808,2]
[359839641,1746365447847,-450.0,0.00019808,2]
[359839642,1746365447857,-450.0,0.00019808,2]
[359839643,1746365447867,-450.0,0.00019808,2]
[359839644,1746365447876,-470.0,0.00019808,2]
[359839645,1746365447886,-571.67,0.00019808,2]
[359839646,1746365447897,-450.0,0.00019808,2]
[359839647,1746365447906,-554.37006051,0.00019808,2]
[359839648,1746365447916,-450.0,0.00019808,2]
[359839649,1746365447926,-481.13,0.00019808,2]
[359839650,1746365447935,-450.0,0.00019808,2]
[359839651,1746365447944,-506.7,0.00019808,2]
[359839652,1746365447954,-450.0,0.00019808,2]
[359839653,1746365447964,-354.18,0.00019808,2]
[359839654,1746365447973,-459.47,0.00019808,2]
[359839655,1746365447983,-450.0,0.00019808,2]
[359839656,1746365447992,-550.86,0.00019808,2]
[359839657,1746365448002,-450.0,0.00019808,2]
[359839658,1746365448012,-450.0,0.00019808,2]
[359839659,1746365448022,-450.0,0.00019808,2]
[359839660,1746365448032,-450.0,0.00019808,2]
[359839661,1746365448041,-213.91,0.00019808,2]
[359839662,1746365448051,-450.0,0.00019808,2]
[359839663,1746365448061,-409.55,0.00019808,2]
[359839664,1746365448071,-450.0,0.00019808,2]
[359839665,1746365448081,-528.18,0.00019808,2]
[359839666,1746365448091,-450.0,0.00019808,2]
[359839667,1746365448101,-285.07273808,0.00019808,2]
[359839668,1746365448111,-450.0,0.00019808,2]
[359839669,1746365448121,-250.28,0.00019808,2]
[359839670,1746365448131,-151.0,0.00019808,2]
[359839671,1746365448141,-151.0,0.00019808,2]
[359839672,1746365448150,-450.0,0.00019808,2]
[359839673,1746365448161,-151.0,0.00019808,2]
[359839674,1746365448171,-450.0,0.00019808,2]
[359839675,1746365448181,-450.0,0.00019808,2]
[359839676,1746365448191,-151.0,0.00019808,2]
[359839677,1746365448201,-450.0,0.00019808,2]
[359839678,1746365448211,-221.34,0.00019808,2]
[359839679,1746365448221,-450.0,0.00019808,2]
[359839680,1746365448230,-151.0,0.00019808,2]
[359839681,1746365448240,-164.35,0.00019808,2]
[359839682,1746365448250,-949.78,0.00019808,2]
[359839683,1746365448260,-450.0,0.00019808,2]
[359839684,1746365448270,-749.03,0.00019808,2]
[359839685,1746365448280,-450.0,0.00019808,2]
[359839686,1746365448291,-913.21,0.00019808,2]
[359839687,1746365448304,-11209.67,0.00019808,2]
[359839688,1746365448314,-450.0,0.00019808,2]
[359839689,1746365448323,-1055.39,0.00019808,2]
[359839690,1746365448333,-450.0,0.00019808,2]
[359839691,1746365448343,-3349.39,0.00019808,2]
[359839692,1746365448353,-450.0,0.00019808,2]
[359839693,1746365448363,-450.0,0.00019808,2]
[359839694,1746365448372,-450.0,0.00019808,2]
[359839695,1746365448382,-3010.93,0.00019808,2]
[359839696,1746365448391,-815.79,0.00019808,2]
[359839697,1746365448402,-450.0,0.00019808,2]
[359839698,1746365448412,-450.0,0.00019808,2]
[359839699,1746365448422,-450.0,0.00019808,2]
[359839700,1746365448432,-450.0,0.00019808,2]
[359839701,1746365448441,-450.0,0.00019808,2]
[359839702,1746365448451,-492.34,0.00019808,2]
[359839703,1746365448462,-450.0,0.00019808,2]
[359839704,1746365448472,-227.96,0.00019808,2]
[359839705,1746365448484,-598.99,0.00019808,2]
[359839706,1746365448496,-450.0,0.00019808,2]
[359839707,1746365448506,-1883.2,0.00019808,2]
[359839708,1746365448516,-450.0,0.00019808,2]
[359839709,1746365448526,-410.94,0.00019808,2]
[359839710,1746365448536,-33399.69,0.00019808,2]
[359839711,1746365448546,-555.44,0.00019808,2]
[359839712,1746365448556,-1398.71,0.00019808,2]
[359839713,1746365448568,-263.24,0.00019808,2]
[359839714,1746365448578,-450.0,0.00019808,2]
[359839715,1746365448588,-450.0,0.00019808,2]
[359839716,1746365448598,-450.0,0.00019808,2]
[359839717,1746365448608,-519.64,0.00019808,2]
[359839718,1746365448618,-450.0,0.00019808,2]
[359839719,1746365448627,-450.0,0.00019808,2]
[359839720,1746365448637,-177.130422,0.00019808,2]
[359839721,1746365448647,-450.0,0.00019808,2]
[359839722,1746365448657,-558.99,0.00019808,2]
[359839723,1746365448667,-450.0,0.00019808,2]
[359839724,1746365448677,-450.0,0.00019808,2]
[359839725,1746365448686,-618.87,0.00019808,2]
[359839726,1746365448696,-1542.34,0.00019808,2]
[359839727,1746365448706,-450.0,0.00019808,2]
[359839728,1746365448715,-450.0,0.00019808,2]
[359839729,1746365448725,-471.67,0.00019808,2]
[359839730,1746365448735,-452.92,0.00019808,2]
[359839731,1746365448744,-450.0,0.00019808,2]
[359839732,1746365448754,-450.0,0.00019808,2]
[359839733,1746365448764,-450.0,0.00019808,2]
[359839734,1746365448774,-450.0,0.00019808,2]
[359839735,1746365448784,-1262.12,0.00019808,2]
[359839736,1746365448795,-450.0,0.00019808,2]
[359839737,1746365448806,-450.0,0.00019808,2]
[359839738,1746365448815,-320.49748709,0.00019808,2]
[359839739,1746365448825,-1322.12,0.00019808,2]
[359839740,1746365448836,-156.74,0.00019808,2]
[359839741,1746365448846,-151.0,0.00019808,2]
[359839742,1746365448856,-450.0,0.00019808,2]
[359839743,1746365448866,-450.0,0.00019808,2]
[359839744,1746365448876,-565.28,0.00019808,2]
[359839745,1746365448886,-450.0,0.00019808,2]
[359839746,1746365448895,-500.0,0.00019808,2]
[359839747,1746365448905,-180.80236746,0.00019809,2]
[359839748,1746365448915,-6563.1746061,0.00019809,2]
[359839749,1746365448925,-500.0,0.0001982,2]
[359839750,1746365448935,-2000.0,0.0001982,2]
[359839751,1746365448946,-200.0,0.0001982,2]
[359839752,1746365448957,-3145.66993252,0.00019823,2]
[359839753,1746365448967,-180.80236746,0.00019832,2]
[359839754,1746365448978,-274.9,0.00019835,2]
[359839755,1746365448988,-1433.19,0.00019835,2]
[359839756,1746365448998,-450.0,0.00019835,2]
[359839757,1746365449009,-207.38,0.00019835,2]
[359839758,1746365449019,-450.0,0.00019835,2]
[359839759,1746365449029,-595.11455112,0.00019835,2]
[359839760,1746365449040,-151.0,0.00019835,2]
[359839761,1746365449050,-450.0,0.00019835,2]
[359839762,1746365449060,-520.43,0.00019835,2]
[359839763,1746365449071,-481.13,0.00019835,2]
[359839764,1746365449081,-450.0,0.00019835,2]
[359839765,1746365449091,-151.0,0.00019835,2]
[359839766,1746365449101,-151.0,0.00019835,2]
[359839767,1746365449111,-506.7,0.00019835,2]
[359839768,1746365449122,-450.0,0.00019835,2]
[359839769,1746365449131,-450.0,0.00019835,2]
[359839770,1746365449142,-550.86,0.00019835,2]
[359839771,1746365449152,-450.0,0.00019835,2]
[359839772,1746365449162,-151.0,0.00019835,2]
[359839773,1746365449172,-450.0,0.00019835,2]
[359839774,1746365449182,-151.0,0.00019835,2]
[359839775,1746365449192,-450.0,0.00019835,2]
[359839776,1746365449202,-430.87,0.00019835,2]
[359839777,1746365449212,-450.0,0.00019835,2]
[359839778,1746365449222,-151.0,0.00019835,2]
[359839779,1746365449232,-151.0,0.00019835,2]
[359839780,1746365449242,-450.0,0.00019835,2]
[359839781,1746365449252,-151.0,0.00019835,2]
[359839782,1746365449262,-298.79,0.00019835,2]
[359839783,1746365449273,-450.0,0.00019835,2]
[359839784,1746365449283,-450.0,0.00019835,2]
[359839785,1746365449295,-151.0,0.00019835,2]
[359839786,1746365449305,-313.625703,0.00019835,2]
[359839787,1746365449315,-313.625703,0.00019835,2]
[359839788,1746365449326,-450.0,0.00019835,2]
[359839789,1746365449336,-160.076601,0.00019835,2]
[359839790,1746365449346,-308.100276,0.00019835,2]
[359839791,1746365449356,-450.0,0.00019835,2]
[359839792,1746365449366,-308.100276,0.00019835,2]
[359839793,1746365449376,-450.0,0.00019835,2]
[359839794,1746365449386,-151.0,0.00019835,2]
[359839795,1746365449396,-151.0,0.00019835,2]
[359839796,1746365449406,-949.78,0.00019835,2]
[359839797,1746365449416,-450.0,0.00019835,2]
[359839798,1746365449426,-749.03,0.00019835,2]
[359839799,1746365449436,-450.0,0.00019835,2]
[359839800,1746365449446,-913.21,0.00019835,2]
[359839801,1746365449455,-11209.67,0.00019835,2]
[359839802,1746365449465,-450.0,0.00019835,2]
[359839803,1746365449475,-1055.39,0.00019835,2]
[359839804,1746365449488,-450.0,0.00019835,2]
[359839805,1746365449498,-233.306102,0.00019835,2]
[359839806,1746365449508,-151.0,0.00019835,2]
[359839807,1746365449518,-233.306102,0.00019835,2]
[359839808,1746365449528,-3349.39,0.00019835,2]
[359839809,1746365449538,-450.0,0.00019835,2]
[359839810,1746365449548,-450.0,0.00019835,2]
[359839811,1746365449558,-273.383764,0.00019835,2]
[359839812,1746365449568,-450.0,0.00019835,2]
[359839813,1746365449578,-273.383764,0.00019835,2]
[359839814,1746365449587,-815.79,0.00019835,2]
[359839815,1746365449597,-3010.93,0.00019835,2]
[359839816,1746365449607,-450.0,0.00019835,2]
[359839817,1746365449617,-244.38,0.00019835,2]
[359839818,1746365449627,-450.0,0.00019835,2]
[359839819,1746365449637,-450.0,0.00019835,2]
[359839820,1746365449647,-450.0,0.00019835,2]
[359839821,1746365449657,-203.04182,0.00019835,2]
[359839822,1746365449667,-492.34,0.00019835,2]
[359839823,1746365449677,-151.0,0.00019835,2]
[359839824,1746365449688,-450.0,0.00019835,2]
[359839825,1746365449698,-151.0,0.00019835,2]
[359839826,1746365449708,-505.845583,0.00019835,2]
[359839827,1746365449718,-505.845583,0.00019835,2]
[359839828,1746365449727,-151.0,0.00019835,2]
[359839829,1746365449738,-151.0,0.00019835,2]
[359839830,1746365449748,-450.0,0.00019835,2]
[359839831,1746365449758,-151.0,0.00019835,2]
[359839832,1746365449769,-151.0,0.00019835,2]
[359839833,1746365449779,-1883.2,0.00019835,2]
[359839834,1746365449789,-450.0,0.00019835,2]
[359839835,1746365449799,-33399.69,0.00019835,2]
[359839836,1746365449810,-555.44,0.00019835,2]
[359839837,1746365449820,-1398.71,0.00019835,2]
[359839838,1746365449830,-314.22,0.00019835,2]
[359839839,1746365449840,-169.622999,0.00019835,2]
[359839840,1746365449851,-450.0,0.00019835,2]
[359839841,1746365449861,-169.622999,0.00019835,2]
[359839842,1746365449871,-151.0,0.00019835,2]
[359839843,1746365449882,-245.05,0.00019835,2]
[359839844,1746365449892,-450.0,0.00019835,2]
[359839845,1746365449903,-450.0,0.00019835,2]
[359839846,1746365449914,-173.06,0.00019835,2]
[359839847,1746365449924,-558.99,0.00019835,2]
[359839848,1746365449934,-683.025694,0.00019835,2]
[359839849,1746365449944,-450.0,0.00019835,2]
[359839850,1746365449955,-151.0,0.00019835,2]
[359839851,1746365449965,-683.025694,0.00019835,2]
[359839852,1746365449975,-450.0,0.00019835,2]
[359839853,1746365449986,-618.87,0.00019835,2]
[359839854,1746365449996,-1542.34,0.00019835,2]
[359839855,1746365450010,-151.0,0.00019835,2]
[359839856,1746365450021,-151.0,0.00019835,2]
[359839857,1746365450032,-450.0,0.00019835,2]
[359839858,1746365450043,-471.67,0.00019835,2]
[359839859,1746365450054,-450.0,0.00019835,2]
[359839860,1746365450064,-450.0,0.00019835,2]
[359839861,1746365450075,-450.0,0.00019835,2]
[359839862,1746365450085,-275.37,0.00019835,2]
[359839863,1746365450096,-151.0,0.00019835,2]
[359839864,1746365450107,-1262.12,0.00019835,2]
[359839865,1746365450117,-450.0,0.00019835,2]
[359839866,1746365450294,-450.0,0.00019835,2]
[359839867,1746365450304,-1322.12,0.00019835,2]
[359839868,1746365450313,-450.0,0.00019835,2]
[359839869,1746365450323,-450.0,0.00019835,2]
[359839870,1746365450332,-500.0,0.00019836,2]
[359839871,1746365450342,-188.822306,0.00019839,2]
[359839872,1746365450351,-6563.1746061,0.00019839,2]
[359839873,1746365450361,-151.0,0.00019845,2]
[359839874,1746365450371,-151.0,0.00019845,2]
[359839875,1746365450380,-151.0,0.00019845,2]
[359839876,1746365450390,-293.707899,0.00019845,2]
[359839877,1746365450399,-293.707899,0.00019845,2]
[359839878,1746365450409,-151.0,0.00019845,2]
[359839879,1746365450419,-152.282913,0.00019845,2]
[359839880,1746365450428,-154.049575,0.00019845,2]
[359839881,1746365450437,-154.049575,0.00019845,2]
[359839882,1746365450446,-206.59554,0.00019845,2]
[359839883,1746365450456,-206.59554,0.00019845,2]
[359839884,1746365450465,-161.46725979,0.00019851,2]
[359839885,1746365450475,-399.95728353,0.00019853,2]
[359839886,1746365450487,-180.80236746,0.00019854,2]
[359839887,1746365450497,-4010.0,0.00019859,2]
[359839888,1746365450507,-6759.0,0.00019859,2]
[359839889,1746365450516,-153.0,0.00019859,2]
[359839890,1746365450528,-3145.66993252,0.00019861,2]
[359839891,1746365450538,-190018.51024171,0.00019863,2]
[359839892,1746365450979,-450.0,0.00019726,2]
[359839893,1746365450988,-133.85800454,0.00019726,2]
[359839894,1746365451000,-316.14199546,0.00019726,2]
[359839895,1746365451010,-493.37,0.00019753,2]
[359839896,1746365451020,-346.561261,0.00019782,2]
[359839897,1746365451030,-346.561261,0.00019835,2]
[359839898,1746365451040,-3762.72421434,0.00019863,2]
[359839899,1746365451051,-4836.0,0.00019863,2]
[359839900,1746365451062,-12526.70723578,0.00019863,2]
[359839901,1746365451073,-289.74938457,0.00019863,2]
[359839902,1746365451085,-26515.84835159,0.00019863,2]
[359839903,1746365451101,-5815.3,0.00019863,2]
[359839904,1746365451113,-1099.45166358,0.00019863,2]
[359839905,1746365451124,-1790.68889644,0.00019863,2]
[359839906,1746365451135,-123231.4462055,0.00019863,2]
[359839907,1746365451339,-450.0,0.00019726,2]
[359839908,1746365451348,-296.55940041,0.00019726,2]
[359839909,1746365451360,-153.44059959,0.00019726,2]
[359839910,1746365451369,-450.0,0.00019726,2]
[359839911,1746365451379,-230.88,0.00019753,2]
[359839912,1746365451389,-450.0,0.00019753,2]
[359839913,1746365451398,-259.82,0.0001978,2]
[359839914,1746365451407,-158.75377677,0.00019809,2]
[359839915,1746365451417,-343502.45588375,0.00019863,2]
[359839916,1746365451435,-245.41902,0.00019782,2]
[359839917,1746365451445,-5374.81161163,0.00019863,2]
[359839918,1746365451469,-450.0,0.00019726,2]
[359839919,1746365451478,-76.01000001,0.00019863,2]
[359839920,1746365451500,-245.41902,0.00019835,2]
[359839921,1746365451510,-694.60098,0.00019863,2]
[359839922,1746365481654,1559.43,0.00016941,2]
[359839923,1746365481753,1559.43,0.00019205,2]
[359839926,1746365540216,160.0,0.0003,32]
[359839927,1746365576804,250.0,0.00017,2]
[359839928,1746365577610,878.08,0.00018823,2]
[359839929,1746365577892,300.0,0.00019,2]
[359839930,1746365581975,1500.0,0.00019,2]
[359839931,1746365585589,1591.4,0.00019,2]
[359839932,1746365626526,1300.06968349,0.00018773,2]
[359839933,1746365626550,699.93031651,0.00018773,2]
[359839934,1746365631372,157.69,0.00018773,2]
[359839935,1746365631599,157.69,0.00028159,120]
[359839936,1746365653624,294.42,0.00018765,2]
[359839937,1746365668404,1828.91,0.00018755,2]
[359839938,1746365691220,200.0,0.00018746,2]
[359839939,1746365706819,6819.04968349,0.00019,2]
[359839940,1746365706841,10000.0,0.00019,2]
[359839941,1746365706862,2789.56031651,0.00019,2]
[359839942,1746365708614,7210.43968349,0.00019,2]
[359839943,1746365708634,10000.0,0.00019,2]
[359839944,1746365708655,2398.17031651,0.00019,2]
[359839945,1746365722397,174.38,0.00014995,2]
[359839946,1746365757139,1893.24,0.00018744,2]
[359839947,1746365767866,200.0,0.00018738,2]
[359839948,1746365795772,1727.8,0.00018738,2]
[359839949,1746365839692,160.0,0.0003,32]
[359839950,1746365856559,1000.0,0.00018723,2]
[359839951,1746365885958,184.73,0.0001873,2]
[359839952,1746365886237,184.73,0.00018824,2]
[359839953,1746365964844,250.0,0.00018742,2]
[359839954,1746365970912,500.0,0.00028767,30]
[359839955,1746365998746,500.0,0.00028767,30]
[359839956,1746366008023,165.29,0.00019265,2]
[359839957,1746366036122,1085.66,0.00018703,2]
[359839958,1746366043078,735.99968349,0.000193,2]
[359839959,1746366043098,10000.0,0.000193,2]
[359839960,1746366043119,10000.0,0.000193,2]
[359839961,1746366043140,10000.0,0.000193,2]
[359839962,1746366043161,10000.0,0.000193,2]
[359839963,1746366043190,62066.084301,0.000193,2]
[359839964,1746366095449,207.4,0.00018703,2]
[359839965,1746366139063,160.0,0.0003,32]
[359839966,1746366183416,676.84,0.00018699,2]
[359839967,1746366277388,23900.0,0.00018708,2]
[359839968,1746366332848,554.16,0.00018714,2]
[359839978,1746366441742,160.0,0.0003,32]
[359840002,1746366472433,162.43,0.00018676,2]
[359840004,1746366547009,559.06,0.00018668,2]
[359840007,1746366554577,2000.0,0.0003,30]
[359840018,1746366562671,1000.0,0.00025,30]
[359840019,1746366572001,500.0,0.00027945,30]
[359840020,1746366572241,500.0,0.00029315,35]
[359840021,1746366586887,1000.0,0.0003,30]
[359840022,1746366597366,1000.0,0.0003,30]
[359840023,1746366601891,500.0,0.00027945,30]
[359840024,1746366602144,500.0,0.00029315,30]
[359840025,1746366609027,1198.09496364,0.0003,30]
[359840026,1746366617753,170.6,0.0003,30]
[359840027,1746366625851,356.8,0.0001868,2]
[359840046,1746366632015,-151.0,0.00019526,2]
[359840048,1746366632024,-250.0,0.00019526,2]
[359840050,1746366632034,-117.23066378,0.00019526,2]
[359840052,1746366632049,-383.0827,0.00019526,2]
[359840073,1746366634305,2921.71,0.000195,2]
[359840074,1746366634329,4000.0,0.000195,2]
[359840075,1746366634353,4000.0,0.000195,2]
[359840076,1746366634376,4000.0,0.000195,2]
[359840077,1746366634398,4000.0,0.000195,2]
[359840078,1746366634419,4000.0,0.000195,2]
[359840079,1746366634441,4000.0,0.000195,2]
[359840080,1746366634462,4000.0,0.000195,2]
[359840081,1746366634483,4000.0,0.000195,2]
[359840082,1746366634505,1884.72903035,0.000195,2]
[359840086,1746366638079,-1959.49673622,0.00019526,2]
[359840087,1746366638090,-200.0,0.00019539,2]
[359840088,1746366638099,-207.4,0.00019545,2]
[359840089,1746366638108,-1200.0,0.00019552,2]
[359840090,1746366638119,-3332.02726378,0.00019553,2]
[359840091,1746366638194,-1044.25343622,0.00019553,2]
[359840092,1746366638203,-300.0,0.00019555,2]
[359840093,1746366638213,-300.0,0.00019555,2]
[359840094,1746366638222,-24432.8144,0.00019556,2]
[359840095,1746366638231,-518.23066378,0.00019558,2]
[359840096,1746366638241,-200.0,0.00019577,2]
[359840097,1746366638250,-770.0812,0.00019608,2]
[359840098,1746366638259,-1948.91872398,0.00019614,2]
[359840099,1746366638269,-682.24847281,0.00019626,2]
[359840100,1746366638278,-6253.08103106,0.00019626,2]
[359840101,1746366638287,-158.75377677,0.00019626,2]
[359840102,1746366638297,-772.8988,0.00019626,2]
[359840103,1746366638306,-1948.91872391,0.00019646,2]
[359840104,1746366638315,-161.46725979,0.00019653,2]
[359840105,1746366638325,-6253.08103099,0.00019656,2]
[359840106,1746366638335,-1948.91872391,0.00019678,2]
[359840107,1746366638344,-500.0,0.00019684,2]
[359840108,1746366638353,-6253.08103099,0.00019687,2]
[359840109,1746366638363,-186.54713863,0.00019696,2]
[359840110,1746366638373,-152.88,0.00019698,2]
[359840111,1746366638382,-152.88,0.00019698,2]
[359840112,1746366638391,-180.17,0.00019698,3]
[359840113,1746366638400,-540.55,0.00019698,3]
[359840114,1746366638410,-29999.99999901,0.00019707,2]
[359840115,1746366638423,-10018.48158817,0.00019708,2]
[359840116,1746366638437,-976.98802937,0.00019708,2]
[359840117,1746366638453,-3110.01716113,0.00019708,2]
[359840118,1746366638468,-2048.003565,0.00019708,2]
[359840119,1746366638482,-4059.62035122,0.00019708,2]
[359840120,1746366638495,-3158.92017496,0.00019708,2]
[359840121,1746366638507,-4184.156181,0.00019708,2]
[359840123,1746366638521,-1121.70137876,0.00019708,2]
[359840137,1746366640201,-822.14461619,0.00019708,2]
[359840138,1746366640316,-106823.1003542,0.00019708,2]
[359840139,1746366640327,-1948.91872391,0.00019709,2]
[359840140,1746366640339,-152.88,0.00019716,2]
[359840141,1746366640349,-152.88,0.00019716,2]
[359840142,1746366640360,-152.88,0.00019716,2]
[359840143,1746366640370,-152.88,0.00019716,2]
[359840144,1746366640381,-152.88,0.00019716,2]
[359840145,1746366640392,-6253.08103099,0.00019717,2]
[359840146,1746366640403,-490.0,0.00019726,2]
[359840147,1746366640414,-225.42388184,0.00019726,2]
[359840148,1746366640425,-203.51758548,0.00019726,2]
[359840149,1746366640439,-493.10041977,0.00019726,2]
[359840150,1746366640450,-450.0,0.00019726,2]
[359840151,1746366640461,-216.45762449,0.00019726,2]
[359840152,1746366640471,-490.0,0.00019726,2]
[359840153,1746366640483,-490.0,0.00019726,2]
[359840154,1746366640493,-450.0,0.00019726,2]
[359840155,1746366640504,-490.0,0.00019726,2]
[359840156,1746366640515,-490.0,0.00019726,2]
[359840157,1746366640526,-210.567123,0.00019726,2]
[359840158,1746366640536,-450.0,0.00019726,2]
[359840159,1746366640547,-470.0,0.00019726,2]
[359840160,1746366640557,-450.0,0.00019726,2]
[359840161,1746366640588,-470.0,0.00019726,2]
[359840162,1746366640599,-450.0,0.00019726,2]
[359840163,1746366640610,-450.0,0.00019726,2]
[359840164,1746366640620,-330.0,0.00019726,2]
[359840165,1746366640631,-450.0,0.00019726,2]
[359840166,1746366640641,-470.0,0.00019726,2]
[359840167,1746366640652,-450.0,0.00019726,2]
[359840168,1746366640662,-450.0,0.00019726,2]
[359840169,1746366640672,-470.0,0.00019726,2]
[359840170,1746366640682,-450.0,0.00019726,2]
[359840171,1746366640693,-470.0,0.00019726,2]
[359840172,1746366640703,-470.0,0.00019726,2]
[359840173,1746366640713,-450.0,0.00019726,2]
[359840174,1746366640723,-330.0,0.00019726,2]
[359840175,1746366640733,-470.0,0.00019726,2]
[359840176,1746366640744,-470.0,0.00019726,2]
[359840177,1746366640754,-323.91,0.00019726,2]
[359840178,1746366640764,-470.0,0.00019726,2]
[359840179,1746366640775,-450.0,0.00019726,2]
[359840180,1746366640785,-470.0,0.00019726,2]
[359840181,1746366640795,-470.0,0.00019726,2]
[359840182,1746366640805,-470.0,0.00019726,2]
[359840183,1746366640816,-470.0,0.00019726,2]
[359840184,1746366640826,-450.0,0.00019726,2]
[359840185,1746366640837,-450.0,0.00019726,2]
[359840186,1746366640847,-470.0,0.00019726,2]
[359840187,1746366640858,-470.0,0.00019726,2]
[359840188,1746366640868,-470.0,0.00019726,2]
[359840189,1746366640878,-450.0,0.00019726,2]
[359840191,1746366640888,-500.0,0.00019726,2]
[359840193,1746366640899,-450.0,0.00019726,2]